Cogmind - Beta 14 @@@ ROGUE MODE // 2025.03.29 @ 17:03:06 Player: CanadianCogs Result: Destroyed by G-47 Trooper with Particle Gun Performance ------------- Evolutions (1) 500 Regions Visited (3) 600 Robots Destroyed (74) 370 Value Destroyed (1763) 1763 Prototype IDs (5) 100 Alien Tech Used (0) 0 Bonus (575) 575 TOTAL SCORE: 3908 Bonus ------- High Alert Combat Kills 575 Cogmind --------- Core Integrity 0/400 Matter 266/300 Energy 280/280 System Corruption 9% Temperature Cool (69) Movement Flying (247) Ox3 Location -9/Materials Parts ------- > --- POWER (1) -------- Cooled Ion Engine > --- PROPULSION (2) --- Improved Flight Unit Improved Flight Unit > --- UTILITY (4) ------ Large Storage Unit Targeting Computer Targeting Computer Targeting Computer > --- WEAPON (2) ------- Assault Cannon Assault Cannon > --- INVENTORY (15) --- Cooled Ion Engine Cooled Ion Engine Light Nuclear Core Hover Unit Hover Unit Hover Unit Power Amplifier Light Armor Plating Hardened Light Armor Plating Sensor Drone Bay (20/20) Improved Light Cannon Rocket Launcher Rocket Launcher Rocket Launcher Rocket Launcher Peak State ------------ > --- POWER ------------ Ion Engine > --- PROPULSION ------- Wheel Wheel > --- UTILITY ---------- Large Storage Unit Improved Terrain Scanner Light Armor Plating Sensor Drone Bay > --- WEAPON ----------- Heavy EM Pulse Gun Light Cannon > --- INVENTORY -------- Cooled Ion Engine Cooled Ion Engine Cooled Ion Engine Cooled Ion Engine Flight Unit Improved Flight Unit Light EM Pulse Cannon Light EM Pulse Cannon Light EM Pulse Cannon Light EM Pulse Cannon Rocket Launcher Rocket Launcher Rocket Launcher [Rating: 22] Favorites ----------- Power Cooled Ion Engine Engine Cooled Ion Engine Propulsion Wheel Wheel Wheel Flight Unit Improved Flight Unit Utility Targeting Computer Device Seismic Detector Storage Large Storage Unit Processor Targeting Computer Protection Light Armor Plating Weapon Assault Cannon Energy Gun Heavy EM Pulse Gun Energy Cannon Light EM Pulse Cannon Ballistic Gun Shotgun Ballistic Cannon Assault Cannon Launcher Rocket Launcher Build | -11 -10 -10 -9 ------- Run | Yrd Mat Min Mat Slots Evolved 2 | . . . 2 Power . | . . . . Propulsion . | . . . . Utility 2 | . . . 2 Weapon . | . . . . Parts Attached 54 | 8 6 7 33 Power 8 | 2 3 1 2 Engine 8 | 2 3 1 2 Core . | . . . . Reactor . | . . . . Propulsion 13 | 2 . 1 10 Treads . | . . . . Leg . | . . . . Wheel 11 | 2 . 1 8 Hover . | . . . . Flight 2 | . . . 2 Utility 10 | 2 1 1 6 Device 3 | 1 . 1 1 Storage 2 | 1 1 . . Processor 4 | . . . 4 Hackware . | . . . . Protection 1 | . . . 1 Artifact . | . . . . Weapon 23 | 2 2 4 15 Energy Gun 8 | 2 2 3 1 Energy Cannon 8 | . . . 8 Ballistic Gun 1 | . . . 1 Ballistic Cannon 5 | . . 1 4 Launcher 1 | . . . 1 Special Weapon . | . . . . Impact Weapon . | . . . . Slashing Weapon . | . . . . Piercing Weapon . | . . . . Special Melee Weapon . | . . . . Unidentified Prototypes 5 | . 1 . 4 Corrupted Parts 1 | . . . 1 System Corruption 1 | . . . 1 Parts Lost 17 | . 1 4 12 Power 1 | . . . 1 Propulsion 7 | . . 1 6 Utility 4 | . . 1 3 Weapon 5 | . 1 2 2 Highest Loss Streak 5 | . 1 4 5 To Critical Strikes 1 | . . . 1 Average Slot Usage (%) 96 | . 95 97 97 Engine 11 | . 14 14 10 Wheel 20 | . 28 27 16 Flight 2 | . . . 3 Device 6 | . 14 13 2 Storage 12 | . 14 14 11 Processor 19 | . . . 29 Energy Gun 8 | . 23 21 . Energy Cannon 4 | . . . 6 Ballistic Cannon 10 | . . 5 14 Peak Build Rating 22 | 7 12 13 22 Average Rating 15 | 4 9 11 18 On Entrance 7 | . 7 10 13 Naked Turns . | . . . . Heaviest Build 49 | 13 32 32 49 Greatest Support 32 | 20 20 20 32 Greatest Overweight (x) 11 | . 1 2 11 Average Overweight (x) 1 | . . 1 1 Largest Inventory Capacity 15 | 8 15 15 15 Average Capacity 14 | 7 14 15 15 Most Carried 15 | 3 15 15 15 Average Carried 12 | . 10 13 14 Final Capacity 15 | 8 15 15 15 Final Carried 15 | 1 15 11 15 Class Distribution -------------------- 100% | Mutant Dominant Class ---------------- Mutant | -10/Materials Mutant | -10/Mines Mutant | -9/Materials Resources | -11 -10 -10 -9 ----------- Run | Yrd Mat Min Mat Matter Collected 1394 | 280 55 60 999 Remotely . | . . . . Salvage Created 2415 | 83 80 145 2107 Parts 164 | 10 5 12 137 Haulers Intercepted 1 | . . . 1 Recyclers Shooed 1 | 1 . . . Parts Field Recycled . | . . . . Retrieved Matter . | . . . . Parts Self-Destructed . | . . . . Prevented . | . . . . Kills | -11 -10 -10 -9 ------- Run | Yrd Mat Min Mat Combat Hostiles Destroyed 63 | . 5 7 51 Guns 10 | . 2 3 5 Cannons 40 | . . . 40 AOE 11 | . 3 3 5 Classes Destroyed 14 | 1 1 1 11 Worker 2 | . . . 2 Builder 4 | . . . 4 Tunneler 4 | 4 . . . Hauler 1 | . . . 1 Recycler 3 | . . . 3 Mechanic 1 | . . . 1 Operator 1 | . . . 1 Watcher 2 | . . . 2 Swarmer 18 | . 5 5 8 Grunt 33 | . . 2 31 Brawler 1 | . . . 1 Duelist 1 | . . . 1 Protector 2 | . . . 2 Sentry 8 | . . . 8 Best Kill Streak 10 | 4 3 3 10 Combat Bots Only 8 | . 3 3 8 Max Kills in Single Turn 3 | 1 3 3 2 Gunslinging . | . . . . Exploded 3 | . 3 3 2 Melee . | . . . . Uniques/NPCs Destroyed . | . . . . Combat | -11 -10 -10 -9 -------- Run | Yrd Mat Min Mat Hostile Shots Fired 253 | . 18 20 215 Missed 58 | . 4 3 51 Damage Taken 2392 | . 214 244 1934 Core 513 | . 42 63 408 Absorbed by Shields . | . . . . Core Remaining (%) 79 | 100 . 58 . Volleys Fired 138 | 9 14 14 101 Largest 2 | 2 2 2 2 Hottest 112 | 80 90 90 112 Shots Fired 261 | 18 22 24 197 Gun 80 | 18 22 24 16 Cannon 179 | . . . 179 Launcher 2 | . . . 2 Special . | . . . . Kinetic 137 | . . . 137 Thermal 20 | 18 2 . . Explosive 2 | . . . 2 Electromagnetic 102 | . 20 24 58 Robot Hit Streak 30 | 4 5 6 30 Robot Miss Streak 5 | 3 5 3 3 Penetration Max . | . . . . Secondary Targets . | . . . . Shots Hit Robots 165 | 11 10 12 132 Core Hits 90 | 5 4 7 74 Critical Kills . | . . . . Critical Parts Destroyed . | . . . . Critical Strikes 3 | . . . 3 Blast 3 | . . . 3 Melee Attacks . | . . . . Impact . | . . . . Slashing . | . . . . Piercing . | . . . . Sneak Attacks . | . . . . Combat Hostiles . | . . . . Follow-up Attacks . | . . . . Damage Inflicted 4322 | 125 283 315 3599 Guns 600 | 125 135 192 148 Cannons 3012 | . . . 3012 Explosions 702 | . 148 123 431 Melee . | . . . . Ramming 8 | . . . 8 Kinetic 2237 | . . . 2237 Thermal 585 | 125 148 123 189 Explosive 242 | . . . 242 Electromagnetic 1250 | . 135 192 923 Impact . | . . . . Slashing . | . . . . Piercing . | . . . . Highest Corruption 9 | . 3 3 9 Average Corruption 5 | . 1 3 7 Corruption Purged . | . . . . Corruption Blocked . | . . . . Effects 51 | . 4 6 41 Message Errors 11 | . 2 3 6 Matter Fused 8 | . . . 8 Heat Flow Errors 11 | . 1 1 9 Energy Discharges 5 | . . 2 3 Parts Rejected 1 | . . . 1 Data Loss (minor) 2 | . . . 2 Data Loss (major) 3 | . 1 . 2 Misfires 3 | . . . 3 Alerts 1 | . . . 1 Weapon Failures 6 | . . . 6 Overload Shots . | . . . . Overflow Damage 33 | . 20 . 13 Projectiles 13 | . . . 13 Explosions 20 | . 20 . . Melee . | . . . . Knockbacks 16 | . . . 16 Impact . | . . . . Kinetic 15 | . . . 15 Secondary 1 | . . . 1 Self-Inflicted Damage 154 | . 67 38 49 Shots 5 | . 2 1 2 Rammed 1 | . . . 1 Targets Rammed 1 | . . . 1 Kicked . | . . . . Crushed . | . . . . Highest Temperature 371 | 162 200 275 371 Average Temperature 84 | 81 58 90 87 Received Heat Transfer 873 | . . 111 762 Effects 3 | . . . 3 Shutdowns 1 | . . . 1 Matter Decay 1 | . . . 1 Damage (minor) 1 | . . . 1 Siege Activations . | . . . . Robots Corrupted 2 | . . 1 1 Combat Hostiles 2 | . . 1 1 Parts Fried 6 | . . 3 3 Impact Corruptions . | . . . . Robots Melted . | . . . . Combat Hostiles . | . . . . Parts Melted 1 | . . . 1 Heat Transferred 752 | 275 150 100 227 Parts Sabotaged . | . . . . Parts Stolen . | . . . . Parts Stripped . | . . . . Power Chain Reactions 7 | . 2 2 3 Alert | -11 -10 -10 -9 ------- Run | Yrd Mat Min Mat Peak Influence 1157 | 20 199 237 1157 Initial 91 | . 13 77 91 Average 499 | 7 77 188 723 Maximum Alert Level 4 | . . 1 4 Low Security (%) 29 | 100 100 29 7 Level 1 17 | . . 70 8 Level 2 18 | . . . 29 Level 3 32 | . . . 51 Level 4 2 | . . . 3 Level 5 . | . . . . High Security . | . . . . Max Security . | . . . . Sterilizations 1 | . . . 1 Squads Dispatched 10 | . . . 10 Investigation 6 | . . . 6 Extermination . | . . . . Reinforcement 1 | . . . 1 Assault 3 | . . . 3 Garrison . | . . . . Intercept . | . . . . Searches Triggered . | . . . . Construction Impeded 1 | . . . 1 Haulers Reinforced . | . . . . Active Scanning Responses . | . . . . Cargo Convoy Interrupts . | . . . . Stealth | -11 -10 -10 -9 --------- Run | Yrd Mat Min Mat Distress Signals 7 | . 1 1 5 Communications Jammed . | . . . . Distress Signals . | . . . . Times Spotted 92 | . 12 6 74 Peak Tracking Total 10 | . 4 3 10 Tactical Retreats 6 | . 1 1 4 Traps | -11 -10 -10 -9 ------- Run | Yrd Mat Min Mat Traps Triggered 2 | . 2 . . Indirectly . | . . . . Trap Hack Attempts . | . . . . Triggered . | . . . . Disarmed . | . . . . Reprogrammed . | . . . . Reused . | . . . . Traps Extracted . | . . . . Installed . | . . . . Triggered . | . . . . Machines | -11 -10 -10 -9 ---------- Run | Yrd Mat Min Mat Machines Disabled 1 | . 1 . . Max in Single Turn 1 | . 1 . . Machines Repaired . | . . . . Machines Dismantled . | . . . . Machines Sabotaged . | . . . . Overloaded Fab Kills . | . . . . Hacking | -11 -10 -10 -9 --------- Run | Yrd Mat Min Mat Machines Accessed 11 | . 3 1 7 Terminals 9 | . 3 . 6 Fabricators . | . . . . Repair Stations . | . . . . Recycling Units . | . . . . Scanalyzers 1 | . . . 1 Garrison Access . | . . . . Total Hacks 41 | . 16 1 24 Successful 20 | . 8 1 11 Failed 19 | . 7 . 12 Catastrophic 7 | . . . 7 Database Lockouts 2 | . 1 . 1 Manual 31 | . 13 . 18 Terminals 37 | . 16 . 21 Fabricators . | . . . . Repair Stations . | . . . . Recycling Units . | . . . . Scanalyzers 3 | . . . 3 Garrison Access . | . . . . Terminal Hacks 8 | . 4 1 3 Robot Analysis 3 | . 2 . 1 Open Door 1 | . . 1 . Branch Access Points 1 | . . . 1 Terminal Index 1 | . . . 1 Alert Level 1 | . 1 . . Hauler Manifests 1 | . 1 . . Fabricator Hacks . | . . . . Repair Station Hacks . | . . . . Recycling Unit Hacks . | . . . . Scanalyzer 2 | . . . 2 Insert Component 1 | . . . 1 Analyze 1 | . . . 1 Garrison Access Hacks . | . . . . Unauthorized Hacks 10 | . 4 . 6 Terminals 9 | . 4 . 5 Botnet 7 | . 3 . 4 Disrupt 1 | . 1 . . Search 1 | . . . 1 Fabricators . | . . . . Repair Stations . | . . . . Recycling Units . | . . . . Scanalyzers 1 | . . . 1 Extract 1 | . . . 1 Garrison Access . | . . . . Data Cores Recovered 1 | . . . 1 Used . | . . . . Hacking Detections 10 | . 3 . 7 Full Trace Events 7 | . 2 . 5 Feedback Events 1 | . 1 . . Corruption 1 | . 1 . . Feedback Blocked . | . . . . Robot Schematics Acquired . | . . . . Robots Built . | . . . . Authchips . | . . . . Time . | . . . . Total Robot Build Rating . | . . . . Part Schematics Acquired 5 | . . . 5 Parts Built . | . . . . Authchips . | . . . . Time . | . . . . Total Part Build Rating . | . . . . Parts Repaired . | . . . . Time . | . . . . Parts Recycled . | . . . . Recycled Matter . | . . . . Retrieved Matter . | . . . . Retrieved Components . | . . . . Parts Scanalyzed 1 | . . . 1 Part Schematics Acquired 1 | . . . 1 Parts Damaged . | . . . . Bothacking | -11 -10 -10 -9 ------------ Run | Yrd Mat Min Mat Used RIF Installer . | . . . . Robots Hacked . | . . . . Non-combat . | . . . . Combat . | . . . . Robot Hacks Applied . | . . . . Relay Couplers Released . | . . . . Fabnet Peak Effective % . | . . . . Robots Rewired . | . . . . Allies Hacked . | . . . . Hacks Repelled . | . . . . Allies | -11 -10 -10 -9 -------- Run | Yrd Mat Min Mat Total Allies . | . . . . Largest Group . | . . . . Highest-Rated Group . | . . . . Highest-Rated Ally . | . . . . Total Orders . | . . . . Ally Attacks . | . . . . Total Damage . | . . . . Kills . | . . . . Allies Corrupted . | . . . . Allies Melted . | . . . . Intel | -11 -10 -10 -9 ------- Run | Yrd Mat Min Mat Robot Analysis Total 3 | . 2 . 1 Derelict Logs Recovered . | . . . . Drone Launches . | . . . . Drone Recoveries . | . . . . Exploration | -11 -10 -10 -9 ------------- Run | Yrd Mat Min Mat Turns Passed 2134 | 88 341 364 1341 Spaces Moved 1365 | 48 297 331 689 Core 8 | 5 . . 3 Treads . | . . . . Legs . | . . . . Wheels 1293 | 43 297 331 622 Hover . | . . . . Flight 64 | . . . 64 Fastest Speed 50 | 50 80 95 95 Average Speed 111 | 76 92 95 129 Slowest Speed 600 | 80 95 110 600 Overloaded Moves . | . . . . Propulsion Burnouts . | . . . . Robots Hopped . | . . . . Cave-ins Triggered . | . . . . Exploration Rate (%) 45 | 4 61 60 57 Regions Visited 3 Branch Regions 1 Pre-discovered Areas . | . . . . Known Exits Taken . | . . . . Unknown Exits Taken 3 | 1 1 1 . Scrap Searched . | . . . . Spaces Dug . | . . . . Terrain Destroyed 62 | . 4 15 43 Melee . | . . . . Projectile 13 | . . . 13 AOE 49 | . 4 15 30 Terrain Rammed . | . . . . Walls Destroyed . | . . . . Machines Disabled . | . . . . Actions | -11 -10 -10 -9 --------- Run | Yrd Mat Min Mat Total 1715 | 80 341 354 940 Wait 89 | 7 4 1 77 Move 1362 | 47 296 330 689 Hop . | . . . . Pick Up 45 | 8 16 1 20 Fast Attach 18 | 1 2 1 14 Attach 25 | 7 2 4 12 Detach 3 | . 1 . 2 Swap 11 | . 2 2 7 Drop 23 | 1 4 1 17 Fire 138 | 9 14 14 101 Melee . | . . . . Ram 1 | . . . 1 Kick . | . . . . Crush . | . . . . Escape Stasis . | . . . . Rewire . | . . . . Trap . | . . . . Miscellaneous . | . . . . Route ------- -11/Scrapyard -10/Materials (discovered 4 exits: *Mat x3 / *Min) -10/Mines -9/Materials (discovered 3 exits: [*Mat] / Min x2) History --------- Turn | Location | Event 23 | -11/Scrapyard | Discovered new exit (range 16) 89 | -11/Scrapyard | Entered Materials 150 | -10/Materials | Discovered new exit (range 3) 252 | -10/Materials | Discovered new exit (range 16) 309 | -10/Materials | Build established: Mutant 328 | -10/Materials | Central database locked down 384 | -10/Materials | Discovered new exit (range 4) 418 | -10/Materials | Discovered new exit (range 13) 430 | -10/Materials | Entered Mines 467 | -10/Mines | Assembled infested the area 480 | -10/Mines | Found the Drone Emporium 483 | -10/Mines | Found Prototype Device 674 | -10/Mines | Lost 4 parts (1n1u2w) 787 | -10/Mines | Discovered new exit (range 9) 794 | -10/Mines | Entered Materials 794 | -9/Materials | Evolved 2 slots: Utility x2 795 | -9/Materials | Identified Sensor Drone Bay 984 | -9/Materials | Lost 5 parts (2n2u1w) 985 | -9/Materials | Destroyed 8 combat bots 1194 | -9/Materials | First assault squad dispatched 1288 | -9/Materials | Lost 3 parts (1n1u1w) 1365 | -9/Materials | Core integrity fell below 50% 1491 | -9/Materials | Discovered new exit (range 15) 1744 | -9/Materials | Central database locked down 1964 | -9/Materials | Identified exit to Mines 2034 | -9/Materials | Core integrity fell below 20% 2107 | -9/Materials | Sterilization system engaged 2107 | -9/Materials | Non-combat units ordered to evacuate 2135 | -9/Materials | Destroyed by G-47 Trooper with Particle Gun Last Messages --------------- 02087_ L-31 Rogue destroyed. 02090_ G-34 Mercenary destroyed. 02092_ System corrupted: Matter fused (-5). 02099_ Acquired 3 matter. 02104_ G-34 Mercenary destroyed. 02104_ K-01 Serf collects debris. 02107_ ALERT: Persistent threat exposed, engaging Materials sterilization system. 02107_ ALERT: All non-combat units evacuate. 02107_ Acquired 79 matter. 02112_ System corrupted: Matter fused (-7). 02112_ Acquired 3 matter. 02125_ System corrupted: Assault Cannon jammed. 02127_ C-30 ARC bursts open, deploying its payload. 02127_ G-47 Trooper unfolds itself. 02128_ System corrupted: Assault Cannon jammed. 02128_ G-47 Trooper knocked back. 02131_ G-47 Trooper destroyed. 02131_ Critical hit (Burn: +37). 02134_ G-47 Trooper knocked back. Map ----- +----------------------------------------------------+ | # #####+############### #?????????????????? | | # T #?????????????????? | | + *% "" #????????????????>? | | # """" / = [ #?????????????????? | | # """" ##########+### [*! #?????????????????? | | # """" # #? ?###+######??????????????? | | # # #? ?# !% #??????????????? | | # = + """ ## # """ ]]]#??????????????? | | ## # """ ## # """ ]]]#??????????????? | | ?# #### # """ ## # """ ]]]#??????????????? | | ## ##?# #? ## "" # #??????????????? | | # % #?# #?####### "Y # """ * #??????????????? | | # #?#% #???????# "" # """ #?????????????? | | [ T #?# #???????# # """ ##?????????????? | | # #?# #???????##??## #??????????????? | | # #?# #??????????????########??????????????? | | #######?# #????????????????????????????????????? | | ????????# ##############??###?? ???????????????? | | ??####### ? ????????????????? | | ??# ## ? ????????????????? | | ??# ## ?%[ ?????????????????? | | ??# ## ########### #####+#??????????????????? | | ??# ## #???????????#g!%%%####+#?????????????? | | ### ## #???????????#="" # g ?????????????? | | !!#" ## #???????????# """ ; ????????????? | | !!#T ## #???????????#@ R"g#??????????????????? | | ] #" ## ####????????# """ #??????????????????? | | # ## % !##???????# !#??????????????????? | | ###+###% !##??????# !%%#??????????????????? | | ! % !#???????#####+#??????????????????? | | % =% % !#???????????# #??????????????????? | | =!% !#???????????#/#??????????????????? | | = ####### !##?????????### ###?######?????????? | | #########%%%####??????????# # #?????????? | | %%!% # # # #???????# ### # [#?????????? | | %%%% #?#* # #???????# = * + #?????????? | | %% #?# ########??##### ! # """ #?????????? | | #?# ## #??????# # """ #?????????? | | #?# ## #??????## ##?""" #?????????? | | ##+###### ## #???????# #??######?????????? | | ?# ##???# ## #???????# #?????????????????? | | # #??### ## #??#???## #?????????????????? | | # ###### % ### ##???????# #?????????????????? | | # =% #????????# #?????#####???????? | | + = #????????# ##### %%#???????? | | # #????????# %#???????? | | # #######+#### ##???????# !% "#??????? | | # #??# # #???#????# #???????? | | ?# #?## % # #????#???## ###### #???????? | | ?# #?# * = # ######?#??# #?##???# ###???????? | +----------------------------------------------------+ Best States ------------- Heat Dissipation 28 Energy Generation 14 Energy Capacity 280 Matter Stores 300 Matter Capacity 300 Sight Range 16 Terrain Scan Range 16 Terrain Scan Density 10 Armor Coverage 150 Evasion (%) 50 Targeting Accuracy 15 Item Schematics ----------------- Hover Unit | -9/Materials | Scanalyzed Mace | -9/Materials | Extracted Lgt. Treads | -9/Materials | Extracted Signal Interpreter | -9/Materials | Extracted Power Shielding | -9/Materials | Extracted Robot Schematics ------------------ None Fabricated ------------ Nothing Alien Tech Used ----------------- None Achievements -------------- None Challenges ------------ None Game ------ Seed ScrapoidNeutrinoStick Manual? 0 Play Time 00:45:22 Cumulative 62.8 hours Start 2025.03.29 @ 16:32:39 End 2025.03.29 @ 17:03:06 Sessions 1 Manual Loads 0 Difficulty Rogue Special Mode None Game No. 103 Rogue 103 Adventurer 0 Explorer 0 Win Type - Total 0 Types 0/0/0/0/0/0/0/0/0 Lore% 19 Gallery% 39 Achievement% 33 Wizard Run 0 Options --------- Layout 0 ASCII 0 Keyboard 0 Movement Mouse Keybinds 0 Fullscreen 2 Font 18/SmallcapsGlow Map View 38x25 Zoom Use 95% Tactical HUD 1 Map Filters NONE Filters NONE Steam 1 RUN: a34cffd2-55f5-4574-8ffb-e2881d45b7c3